bitfinex-derivatives/quotes_BTCF0:USTF0_20250728
["timestamp","ask_amount","ask_price","bid_price","bid_amount"]
[1753718567262,0.56088304,118260.0,118250.0,1.3280335]
[1753718567462,0.56088304,118260.0,118250.0,1.28232458]
[1753718567664,0.56090906,118260.0,118250.0,1.28232458]
[1753718567857,0.47224,118260.0,118250.0,1.28232458]
[1753718568254,0.40341,118260.0,118250.0,1.28232458]
[1753718568453,0.04706,118260.0,118250.0,1.28232458]
[1753718568657,0.21511,118260.0,118250.0,1.28232458]
[1753718568859,0.47224,118260.0,118250.0,1.28232458]
[1753718569564,0.30419,118260.0,118250.0,1.28232458]
[1753718569862,0.47224,118260.0,118250.0,1.28232458]
[1753718570765,0.54808133,118260.0,118250.0,1.28232458]
[1753718573868,0.48506218,118260.0,118250.0,1.35016413]
[1753718574062,0.41623218,118260.0,118250.0,1.35016413]
[1753718574262,0.01482218,118260.0,118250.0,1.85747535]
[1753718574563,0.07555804,118260.0,118250.0,1.85747535]
[1753718574760,0.01482218,118260.0,118250.0,1.85747535]
[1753718575465,0.06383218,118260.0,118250.0,1.35016413]
[1753718575669,0.12456804,118260.0,118250.0,1.35016413]
[1753718578865,0.06383218,118260.0,118250.0,1.35016413]
[1753718579768,0.01482218,118260.0,118250.0,1.35016413]
[1753718580871,0.06383218,118260.0,118250.0,1.7830332]
[1753718581169,0.22611218,118260.0,118250.0,1.7830332]
[1753718581565,0.28679283,118260.0,118250.0,1.7830332]
[1753718582672,0.55194283,118260.0,118250.0,1.35016413]
[1753718582874,0.9848119,118260.0,118250.0,0.61715413]
[1753718583076,1.09325055,118260.0,118250.0,0.1691335]
[1753718583273,1.16909188,118260.0,118250.0,0.8538535]
[1753718583473,1.16909188,118260.0,118250.0,0.1691335]
[1753718583866,1.16909188,118260.0,118250.0,0.10057021]
[1753718584067,1.16909188,118260.0,118250.0,0.17812021]
[1753718584873,1.24367932,118260.0,118250.0,0.17812021]
[1753718586271,1.07456002,118260.0,118250.0,0.17812021]
[1753718586471,1.24367932,118260.0,118250.0,0.17812021]
[1753718587478,1.24367932,118260.0,118250.0,0.10057021]
[1753718587675,0.6455823,118250.0,118240.0,0.2114266]
[1753718587975,0.6455879,118240.0,118230.0,0.95561485]
[1753718588172,1.27200729,118240.0,118230.0,0.95561485]
[1753718588975,1.27200729,118240.0,118230.0,1.10108485]
[1753718589374,1.10285939,118240.0,118230.0,1.10108485]
[1753718589773,1.10485939,118240.0,118230.0,1.10108485]
[1753718589973,0.59740288,118240.0,118230.0,1.10108485]
[1753718590869,0.59940288,118240.0,118230.0,1.14721485]
[1753718591771,0.59940288,118240.0,118230.0,0.65268485]
[1753718591976,0.59940288,118240.0,118230.0,1.33736485]
[1753718593474,1.27600729,118240.0,118230.0,1.29223485]
[1753718593673,1.27600729,118240.0,118230.0,1.1904502]
[1753718593980,1.27600729,118240.0,118230.0,1.20645276]
[1753718594176,1.27600729,118240.0,118230.0,0.52177276]
[1753718594376,1.35178278,118240.0,118230.0,0.18615276]
[1753718594680,1.16986659,118240.0,118230.0,0.18615276]
[1753718594880,1.24563105,118240.0,118230.0,0.18615276]
[1753718595080,1.07648315,118240.0,118230.0,0.18615276]
[1753718595281,1.24563105,118240.0,118230.0,0.18615276]
[1753718595583,1.16986659,118240.0,118230.0,0.001]
[1753718595882,1.36488268,118240.0,118230.0,0.001]
[1753718596175,1.86488268,118240.0,118230.0,0.001]
[1753718596479,0.6456022,118230.0,118220.0,0.2537499]
[1753718596671,1.85060089,118230.0,118220.0,0.2537499]
[1753718596873,1.44928508,118230.0,118220.0,0.2537499]
[1753718597080,1.95674159,118230.0,118220.0,0.2537499]
[1753718597679,1.85060089,118230.0,118220.0,0.2537499]
[1753718597882,1.85260089,118230.0,118220.0,0.2547499]
[1753718598184,2.35260089,118230.0,118220.0,0.28657739]
[1753718598378,2.42830702,118230.0,118220.0,0.32887089]
[1753718599883,2.42830702,118230.0,118220.0,0.25132089]
[1753718600875,2.51913998,118230.0,118220.0,0.25132089]
[1753718601081,0.5734508,118210.0,118200.0,0.2115063]
[1753718601286,1.91113365,118210.0,118200.0,0.2115063]
[1753718601689,1.85062949,118210.0,118200.0,0.2115063]
[1753718602186,1.85162949,118210.0,118200.0,0.2125063]
[1753718602888,2.35162949,118210.0,118200.0,0.2125063]
[1753718603091,2.42733562,118210.0,118200.0,0.2125063]
[1753718603994,2.41208983,118210.0,118200.0,0.2125063]
[1753718604180,2.35162949,118210.0,118200.0,0.2125063]
[1753718604384,2.41207921,118210.0,118200.0,0.2125063]
[1753718605384,2.42447527,118210.0,118200.0,0.2145063]
[1753718605593,2.42447527,118210.0,118200.0,0.1722051]
[1753718606193,2.43973168,118210.0,118200.0,0.1722051]
[1753718606487,2.43873168,118210.0,118200.0,0.1712051]
[1753718606688,2.43973168,118210.0,118200.0,0.002]
[1753718606893,2.43973168,118210.0,118200.0,0.1712051]
[1753718607292,2.42833562,118210.0,118200.0,0.1712051]
[1753718608593,1.74361562,118210.0,118200.0,0.1712051]
[1753718608789,2.42845562,118210.0,118200.0,0.1712051]
[1753718610597,2.35274949,118210.0,118200.0,0.10260647]
[1753718610795,2.35278949,118210.0,118200.0,0.10260647]
[1753718610991,2.42830671,118210.0,118200.0,0.10260647]
[1753718612999,2.35427287,118210.0,118200.0,0.10260647]
[1753718613298,2.48117237,118210.0,118190.0,0.2792395]
[1753718613499,0.71266076,118200.0,118190.0,0.5271289]
[1753718613697,1.15890561,118200.0,118190.0,0.6425689]
[1753718614199,1.15890561,118200.0,118190.0,0.6896589]
[1753718614403,1.15890561,118200.0,118190.0,0.6473542]
[1753718614597,1.15890561,118200.0,118190.0,0.6002642]
[1753718614895,0.1692194,118190.0,118180.0,0.45560454]
[1753718615099,1.09848425,118190.0,118180.0,0.72726454]
[1753718616001,1.15894648,118190.0,118180.0,0.72726454]
[1753718616200,1.09848425,118190.0,118180.0,0.72726454]
[1753718616397,1.15894648,118190.0,118180.0,0.3226694]
[1753718616598,1.15894648,118190.0,118180.0,0.2478894]
[1753718616900,1.09848425,118190.0,118180.0,0.2478894]
[1753718617291,1.09948425,118190.0,118180.0,0.2478894]
[1753718617490,1.17600147,118190.0,118180.0,0.3274394]
[1753718617999,1.17600147,118190.0,118180.0,0.4022194]
[1753718618193,1.86092147,118190.0,118180.0,0.5176594]
[1753718618392,1.78540425,118190.0,118180.0,0.5176594]
[1753718618601,1.86092147,118190.0,118180.0,0.5156594]
[1753718618801,1.86092147,118190.0,118180.0,0.5176594]
[1753718620701,1.86092147,118190.0,118180.0,0.1712337]
[1753718621098,2.36092147,118190.0,118180.0,0.1712337]
[1753718621603,2.37244068,118190.0,118180.0,0.1712337]
[1753718621906,2.36092147,118190.0,118180.0,0.1712337]
[1753718624408,2.36092147,118190.0,118180.0,0.10262317]
[1753718625109,2.28540425,118190.0,118180.0,0.10262317]
[1753718625307,0.6522537,118180.0,118170.0,0.3748378]
[1753718625499,1.17418436,118180.0,118170.0,0.3748378]
[1753718625699,1.00495066,118180.0,118170.0,0.5271678]
[1753718625899,1.00495066,118180.0,118170.0,0.6896978]
[1753718626096,1.00495066,118180.0,118170.0,0.3277378]
[1753718626405,1.00595066,118180.0,118170.0,0.5271678]
[1753718626606,1.00595066,118180.0,118170.0,0.6896978]
[1753718627105,0.08950799,118180.0,118170.0,1.12312047]
[1753718627309,0.22981218,118180.0,118170.0,1.12312047]
[1753718627603,0.66607588,118180.0,118170.0,0.6426078]
[1753718627908,1.09949855,118180.0,118170.0,0.5678278]
[1753718628209,1.09949855,118180.0,118170.0,0.2961678]
[1753718628506,1.78697855,118180.0,118170.0,0.2961678]
[1753718629910,1.78497855,118180.0,118170.0,0.2961678]
[1753718630111,1.86166436,118180.0,118170.0,0.2961678]
[1753718630310,1.86166436,118180.0,118170.0,0.25042649]
[1753718630511,1.86166436,118180.0,118170.0,0.29273779]
[1753718631201,0.48302,118170.0,118160.0,0.49599899]
[1753718631510,0.99630641,118170.0,118160.0,0.61143899]
[1753718631710,0.56325948,118170.0,118160.0,0.61143899]
[1753718632013,0.56325948,118170.0,118160.0,0.65754899]
[1753718632306,0.50366326,118170.0,118160.0,0.65754899]
[1753718632505,0.67291126,118170.0,118160.0,0.61143899]
[1753718632804,1.16693979,118170.0,118160.0,0.26499899]
[1753718633012,1.17306795,118170.0,118160.0,0.26499899]
[1753718633511,1.00581995,118170.0,118160.0,0.34254899]
[1753718633709,1.00581995,118170.0,118160.0,0.41701899]
[1753718634006,1.17506795,118170.0,118160.0,0.44919899]
[1753718634398,1.23568936,118170.0,118160.0,0.26499899]
[1753718634603,1.06644136,118170.0,118160.0,0.26499899]
[1753718634809,1.23568936,118170.0,118160.0,0.26499899]
[1753718635406,1.06644136,118170.0,118160.0,0.26499899]
[1753718635613,1.06644136,118170.0,118160.0,0.34254899]
[1753718635799,1.06644136,118170.0,118160.0,0.44919899]
[1753718636002,1.06644136,118170.0,118160.0,0.49729899]
[1753718636611,1.06644136,118170.0,118160.0,0.61375899]
[1753718636809,1.31805869,118170.0,118160.0,0.65986899]
[1753718637105,0.63301869,118170.0,118160.0,0.65986899]
[1753718637312,0.63301869,118170.0,118160.0,1.09329166]
[1753718637613,0.32143467,118170.0,118160.0,1.09329166]
[1753718638011,0.55641467,118170.0,118160.0,1.09329166]
[1753718641109,0.70454067,118170.0,118160.0,1.09329166]
[1753718642007,0.64391926,118170.0,118160.0,1.09329166]
[1753718643121,0.71960507,118170.0,118160.0,1.09329166]
[1753718643315,0.64391926,118170.0,118160.0,1.09329166]
[1753718643816,0.17076926,118170.0,118160.0,1.52671433]
[1753718644007,0.23144592,118170.0,118160.0,1.69597033]
[1753718644216,0.17076926,118170.0,118160.0,1.69597033]
[1753718644715,0.07568581,118180.0,118170.0,0.564118]
[1753718644911,0.07568581,118180.0,118170.0,1.68258067]
[1753718645513,0.07568581,118180.0,118170.0,1.63684686]
[1753718646217,0.07768581,118180.0,118170.0,1.63684686]
[1753718646717,0.06270184,118180.0,118170.0,1.63684686]
[1753718646920,0.06270184,118180.0,118170.0,1.80608686]
[1753718647817,0.21082784,118180.0,118170.0,1.80608686]
[1753718648215,0.21082784,118180.0,118170.0,1.82312705]
[1753718648404,0.150126,118180.0,118170.0,1.82312705]
[1753718650220,0.150126,118180.0,118170.0,1.13808705]
[1753718650415,0.150126,118180.0,118170.0,1.82324705]
[1753718651321,0.195156,118180.0,118170.0,1.82324705]
[1753718651621,0.195156,118180.0,118170.0,1.65400705]
[1753718653820,0.25585784,118180.0,118170.0,1.65400705]
[1753718656623,0.7011814,118180.0,118170.0,1.65400705]
[1753718656823,0.7011814,118180.0,118170.0,1.65432705]
[1753718657121,0.4662014,118180.0,118170.0,1.65432705]
[1753718657622,0.2696614,118180.0,118170.0,1.65432705]
[1753718657922,0.2696614,118180.0,118170.0,1.65396705]
[1753718658424,0.20895956,118180.0,118170.0,1.65396705]
[1753718658933,0.2696614,118180.0,118170.0,1.65396705]
[1753718659317,0.20895956,118180.0,118170.0,1.65396705]
[1753718659520,0.57215956,118180.0,118170.0,1.65396705]
[1753718659720,0.64047956,118180.0,118170.0,1.65396705]
[1753718659912,0.57215956,118180.0,118170.0,1.65396705]
[1753718660425,0.57215956,118180.0,118170.0,0.96884705]
[1753718660614,0.64047956,118180.0,118170.0,1.65376705]
[1753718661521,0.64047956,118180.0,118170.0,0.96884705]
[1753718661826,0.64047956,118180.0,118170.0,1.65376705]
[1753718663023,0.7011814,118180.0,118170.0,1.65376705]
[1753718663325,0.64047956,118180.0,118170.0,1.65376705]
[1753718663523,0.7011814,118180.0,118170.0,1.65376705]
[1753718669033,0.2246314,118180.0,118170.0,1.65376705]
[1753718669730,0.07568581,118200.0,118180.0,0.18912]
[1753718669930,0.06075115,118190.0,118180.0,0.5275783]
[1753718670232,0.06075115,118190.0,118180.0,1.64588097]
[1753718670428,0.06075115,118190.0,118180.0,1.83737097]
[1753718671333,0.54870581,118200.0,118190.0,0.3583394]
[1753718671535,0.54870581,118200.0,118190.0,0.93752421]
[1753718671730,0.55070581,118200.0,118190.0,0.93752421]
[1753718672330,0.07568581,118200.0,118190.0,0.95495041]
[1753718672634,0.002,118200.0,118190.0,0.95595041]
[1753718672931,0.90944267,118200.0,118190.0,0.86089774]
[1753718673140,1.05756867,118200.0,118190.0,0.93844774]
[1753718673331,1.13325448,118200.0,118190.0,0.86089774]
[1753718673529,1.05756867,118200.0,118190.0,0.86089774]
[1753718673932,1.13325448,118200.0,118190.0,0.86089774]
[1753718674236,1.13325448,118200.0,118190.0,0.93844774]
[1753718674434,1.13225448,118200.0,118190.0,0.93848774]
[1753718674942,1.13225448,118200.0,118190.0,0.25356774]
[1753718675330,1.13125448,118200.0,118190.0,1.00590774]
[1753718675532,1.13225448,118200.0,118190.0,0.9315362]
[1753718675838,1.13225448,118200.0,118190.0,1.1007556]
[1753718676531,0.69883181,118200.0,118190.0,1.1007556]
[1753718676839,0.69883181,118200.0,118190.0,1.2086556]
[1753718677429,0.69883181,118200.0,118190.0,0.5237756]
[1753718677630,0.69883181,118200.0,118190.0,1.2086556]
[1753718677831,0.623146,118200.0,118190.0,1.2086556]
[1753718678026,1.05656867,118200.0,118190.0,0.8735256]
[1753718678233,1.13247799,118200.0,118190.0,0.8735256]
[1753718678832,1.13247799,118200.0,118190.0,0.9510756]
[1753718681037,1.13247799,118200.0,118190.0,1.1007556]
[1753718681841,1.14596267,118200.0,118190.0,1.1007556]
[1753718683237,1.07005335,118200.0,118190.0,1.1007556]
[1753718684443,1.14596267,118200.0,118190.0,1.1007556]
[1753718685431,1.14596267,118200.0,118190.0,1.0833294]
[1753718685835,1.14596267,118200.0,118190.0,1.0832894]
[1753718686441,1.14596267,118200.0,118190.0,0.35271975]
[1753718686642,1.14596267,118200.0,118190.0,1.03755975]
[1753718689845,1.14596267,118200.0,118190.0,1.01997]
[1753718690040,1.14596267,118200.0,118190.0,1.1891894]
[1753718690345,1.14596267,118200.0,118190.0,1.1207294]
[1753718690643,1.23925835,118200.0,118190.0,1.1891894]
[1753718690845,1.23925835,118200.0,118190.0,0.76259651]
[1753718691247,1.34539905,118200.0,118190.0,0.76259651]
[1753718692447,1.23925835,118200.0,118190.0,0.76259651]
[1753718694042,0.6444394,118190.0,118180.0,0.2961419]
[1753718694242,1.77618675,118190.0,118180.0,0.2961419]
[1753718694447,1.88255063,118190.0,118180.0,0.2961419]
[1753718694845,1.77618675,118190.0,118180.0,0.2961419]
[1753718695042,1.8825233,118190.0,118180.0,0.2961419]
[1753718695344,2.0316493,118190.0,118180.0,0.2548343]
[1753718695544,2.42531275,118190.0,118180.0,0.2548343]
[1753718695941,2.5316493,118190.0,118180.0,0.2548343]
[1753718696247,2.5306493,118190.0,118180.0,0.2538343]
[1753718696439,2.5326493,118190.0,118180.0,0.2558343]
[1753718696636,2.54325169,118190.0,118180.0,0.2558343]
[1753718696845,2.54325169,118190.0,118180.0,0.16435325]
[1753718697046,2.54225169,118190.0,118180.0,0.20566055]
[1753718697248,2.54325169,118190.0,118180.0,0.24796815]
[1753718699149,2.43691514,118190.0,118180.0,0.24796815]
[1753718699449,2.54325169,118190.0,118180.0,0.24796815]
[1753718699749,2.54325169,118190.0,118180.0,0.20566055]
[1753718699949,2.54325169,118190.0,118180.0,0.13704976]
[1753718701545,2.00349247,118190.0,118180.0,0.2125272]
[1753718701746,2.43691514,118190.0,118180.0,0.2125272]
[1753718706452,2.42631275,118190.0,118180.0,0.2125272]
[1753718706653,1.74147275,118190.0,118180.0,0.2125272]
[1753718706954,1.81723177,118190.0,118180.0,0.5979972]
[1753718707158,2.50231177,118190.0,118180.0,0.5979972]
[1753718707354,0.89657068,118190.0,118180.0,0.5979972]
[1753718707554,0.66361068,118190.0,118180.0,0.93994682]
[1753718707750,0.73937702,118190.0,118180.0,0.98225442]
[1753718707952,0.78651702,118190.0,118180.0,0.98225442]
[1753718708659,0.96036702,118190.0,118180.0,0.98225442]
[1753718708959,0.71459702,118190.0,118180.0,0.98225442]
[1753718709663,0.71459702,118190.0,118180.0,0.54883175]
[1753718709960,0.71459702,118190.0,118180.0,0.98225442]
[1753718712366,0.71459702,118190.0,118180.0,0.54883175]
[1753718712959,0.63883068,118190.0,118180.0,0.54883175]
[1753718713359,1.07225335,118190.0,118180.0,0.54883175]
[1753718716967,1.13294062,118190.0,118180.0,0.54883175]
[1753718717154,0.69951795,118190.0,118180.0,0.54883175]
[1753718719170,0.63883068,118190.0,118180.0,0.54883175]
[1753718721468,0.63883068,118190.0,118180.0,0.98225442]
[1753718722571,0.69954865,118190.0,118180.0,0.98225442]
[1753718722765,0.63883068,118190.0,118180.0,0.98225442]
[1753718724662,0.63883068,118190.0,118180.0,0.54883175]
[1753718725064,0.63883068,118190.0,118180.0,0.98225442]
[1753718727370,0.69955724,118190.0,118180.0,0.98225442]
[1753718729369,0.22433724,118190.0,118180.0,0.98225442]
[1753718729570,0.16361068,118190.0,118180.0,0.98225442]
[1753718729762,0.22433724,118190.0,118180.0,0.98225442]
[1753718729964,0.16361068,118190.0,118180.0,0.98225442]
[1753718730168,0.20863068,118190.0,118180.0,0.98225442]
[1753718730370,0.22436359,118190.0,118180.0,1.24515442]
[1753718730875,0.26938359,118190.0,118180.0,1.24515442]
[1753718731073,0.42933359,118190.0,118180.0,1.24515442]
[1753718731275,0.62145359,118190.0,118180.0,1.24515442]
[1753718732274,0.69019359,118190.0,118180.0,1.24515442]
[1753718732581,0.62145359,118190.0,118180.0,1.24515442]
[1753718732773,0.69019359,118190.0,118180.0,1.24515442]
[1753718735483,0.90291335,118190.0,118180.0,0.4321338]
[1753718735783,1.80873626,118190.0,118180.0,0.1692338]
[1753718735974,1.97795566,118190.0,118180.0,0.1692338]
[1753718736171,1.91720275,118190.0,118180.0,0.1692338]
[1753718736373,1.80873626,118190.0,118180.0,0.1692338]
[1753718737681,1.74798335,118190.0,118180.0,0.1692338]
[1753718737881,1.91720265,118190.0,118180.0,0.1692338]
[1753718739276,1.99296899,118190.0,118180.0,0.12349664]
[1753718740778,2.03527479,118190.0,118180.0,0.1692336]
[1753718740978,2.07758249,118190.0,118180.0,0.10062785]
[1753718742175,0.2017636,118180.0,118170.0,0.2115465]
[1753718742371,1.08197095,118180.0,118170.0,0.2115465]
[1753718743184,1.08197095,118180.0,118170.0,0.12006566]
[1753718743389,1.1883075,118180.0,118170.0,0.16237746]
[1753718745185,1.1893075,118180.0,118170.0,0.16237746]
[1753718745386,1.3384335,118180.0,118170.0,0.16337746]
[1753718746587,1.23209695,118180.0,118170.0,0.16337746]
[1753718747488,1.2423204,118180.0,118170.0,0.12106566]
[1753718747983,1.2423204,118180.0,118170.0,0.001]
[1753718748179,1.30301571,118180.0,118170.0,0.1702479]
[1753718748380,1.80301571,118180.0,118170.0,0.001]
[1753718749780,1.80301571,118180.0,118170.0,0.1702479]
[1753718752886,1.7423204,118180.0,118170.0,0.1702479]
[1753718753292,1.81820478,118180.0,118170.0,0.1702479]
[1753718754086,1.81820478,118180.0,118170.0,0.001]
[1753718754594,1.81820478,118180.0,118170.0,0.1702479]
[1753718755093,1.81820478,118180.0,118170.0,0.001]
[1753718755595,1.81820478,118180.0,118170.0,0.1702479]
[1753718756090,1.81820478,118180.0,118170.0,0.12450357]
[1753718756295,1.80798133,118180.0,118170.0,0.12450357]
[1753718758094,1.81830771,118180.0,118170.0,0.12450357]
[1753718758989,0.6359279,118170.0,118160.0,0.4435733]
[1753718759295,1.76938319,118170.0,118160.0,0.4761133]
[1753718759894,1.84526757,118170.0,118160.0,0.4761133]
[1753718760394,1.99439357,118170.0,118160.0,0.4761133]
[1753718760891,1.99439357,118170.0,118160.0,0.03254]
[1753718761085,0.3550822,118160.0,118150.0,0.6415505]
[1753718761292,1.14345431,118160.0,118150.0,0.6415505]
[1753718761586,0.72292398,118160.0,118150.0,0.6415505]
[1753718761896,0.02637702,118160.0,118150.0,1.07497317]
[1753718762398,0.02737702,118160.0,118150.0,1.07497317]
[1753718762798,0.02937702,118160.0,118150.0,1.07497317]
[1753718763195,0.0764971,118160.0,118150.0,1.07497317]
[1753718763396,0.08998178,118160.0,118150.0,1.75997317]
[1753718765395,0.28566778,118160.0,118150.0,1.33787317]
[1753718765592,1.13821045,118160.0,118150.0,0.5523023]
[1753718765796,1.13821045,118160.0,118150.0,0.8131823]
[1753718765998,1.13821045,118160.0,118150.0,0.8621323]
[1753718766200,0.70478778,118160.0,118150.0,0.8621323]
[1753718766593,0.64418302,118160.0,118150.0,0.8621323]
[1753718766905,0.70490503,118160.0,118150.0,0.8621323]
[1753718767704,1.1383277,118160.0,118150.0,0.8621323]
[1753718768196,0.64418302,118160.0,118150.0,0.8621323]
[1753718768401,0.70492257,118160.0,118150.0,0.8621323]
[1753718770002,1.13834524,118160.0,118150.0,0.8131823]
[1753718770298,0.70492257,118160.0,118150.0,0.8621323]
[1753718770508,1.13834524,118160.0,118150.0,0.8621323]
[1753718770893,1.07760569,118160.0,118150.0,0.8621323]
[1753718771401,1.15349007,118160.0,118150.0,0.59580701]
[1753718771604,1.32275197,118160.0,118150.0,0.54685701]
[1753718771901,0.46668,118150.0,118140.0,0.54842712]
[1753718772101,0.98955076,118150.0,118140.0,1.22323628]
[1753718772292,1.00395321,118150.0,118140.0,0.65178628]
[1753718772608,0.9279898,118150.0,118140.0,1.34665906]
[1753718772905,0.9279898,118150.0,118140.0,1.39560906]
[1753718773291,0.9289898,118150.0,118140.0,1.39560906]
[1753718773704,1.0982659,118150.0,118140.0,1.39560906]
[1753718774291,0.9289898,118150.0,118140.0,0.71048906]
[1753718774604,1.0972641,118150.0,118140.0,0.70073628]
[1753718774795,1.0982641,118150.0,118140.0,0.70073628]
[1753718774996,0.9299898,118150.0,118140.0,0.70073628]
[1753718775197,0.9299898,118150.0,118140.0,0.71088423]
[1753718776005,1.15407921,118150.0,118140.0,0.71088423]
[1753718776505,1.15407921,118150.0,118140.0,0.65178628]
[1753718776902,1.15407921,118150.0,118140.0,0.70073628]
[1753718777298,1.15407921,118150.0,118140.0,0.39090628]
[1753718777506,1.32335321,118150.0,118140.0,0.53827628]
[1753718777899,2.00955321,118150.0,118140.0,0.49595458]
[1753718778204,2.00955321,118150.0,118140.0,0.22844348]
[1753718778506,1.9335898,118150.0,118140.0,0.1692771]
[1753718779006,1.2473898,118150.0,118140.0,0.3944671]
[1753718779209,1.9336698,118150.0,118140.0,0.3944671]
[1753718779802,1.9346698,118150.0,118140.0,0.3944671]
[1753718780705,1.7653958,118150.0,118140.0,0.3944671]
[1753718780908,1.7653958,118150.0,118140.0,0.5079771]
[1753718781107,1.7653958,118150.0,118140.0,0.5569271]
[1753718781307,1.9346699,118150.0,118140.0,0.5569271]
[1753718781701,1.9346699,118150.0,118140.0,0.43935331]
[1753718782012,2.01057409,118150.0,118140.0,0.43935331]
[1753718784306,1.33277313,118150.0,118140.0,0.48527331]
[1753718784506,0.70642256,118150.0,118140.0,0.48527331]
[1753718785102,0.87569666,118150.0,118140.0,0.48527331]
[1753718785303,1.30911933,118150.0,118140.0,0.48527331]
[1753718785911,1.13984523,118150.0,118140.0,0.48527331]
[1753718786110,1.30911923,118150.0,118140.0,0.48527331]
[1753718786312,1.30911923,118150.0,118140.0,0.43924331]
[1753718786611,1.2483898,118150.0,118140.0,0.32908331]
[1753718787007,1.2483898,118150.0,118140.0,0.10065331]
[1753718788002,0.6435595,118140.0,118130.0,0.35461409]
[1753718788203,1.09046685,118140.0,118130.0,0.40069409]
[1753718788410,0.75873741,118140.0,118130.0,0.3324286]
[1753718788710,1.88484008,118140.0,118130.0,0.1693974]
[1753718788914,1.80893589,118140.0,118130.0,0.1693974]
[1753718789525,1.80993589,118140.0,118130.0,0.1693974]
[1753718789721,1.81093589,118140.0,118130.0,0.1693974]
[1753718790425,1.95906189,118140.0,118130.0,0.1693974]
[1753718790621,1.52563922,118140.0,118130.0,0.1693974]
[1753718790817,1.95906189,118140.0,118130.0,0.1693974]
[1753718791927,2.01975554,118140.0,118130.0,0.1693974]
[1753718792128,1.15778604,118140.0,118130.0,0.1693974]
[1753718792420,1.15778604,118140.0,118130.0,0.3983874]
[1753718792619,0.72436337,118140.0,118130.0,0.98800007]
[1753718792819,0.68176337,118140.0,118130.0,0.98800007]
[1753718793025,0.68176337,118140.0,118130.0,0.5545774]
[1753718793628,0.62106972,118140.0,118130.0,0.5545774]
[1753718793830,1.05449239,118140.0,118130.0,0.5545774]
[1753718794020,1.22378179,118140.0,118130.0,0.5545774]
[1753718794615,1.29965844,118140.0,118130.0,0.5085474]
[1753718794817,1.29965844,118140.0,118130.0,0.1693974]
[1753718796625,0.86623577,118140.0,118130.0,0.10076374]
[1753718796828,0.47427,118130.0,118120.0,0.5713264]
[1753718797028,1.16636085,118130.0,118120.0,0.5713264]
[1753718797229,1.19366219,118130.0,118120.0,0.5713264]
[1753718797525,1.02435829,118130.0,118120.0,0.5713264]
[1753718798023,1.02535829,118130.0,118120.0,0.5713264]
[1753718798324,1.19466219,118130.0,118120.0,0.58107028]
[1753718798630,1.02735829,118130.0,118120.0,0.6814864]
[1753718799628,0.59393562,118130.0,118120.0,0.6814864]
[1753718799827,1.02735829,118130.0,118120.0,0.6814864]
[1753718800028,0.59393562,118130.0,118120.0,1.11490907]
[1753718800432,0.19191202,118130.0,118120.0,1.11490907]
[1753718800931,0.19191202,118130.0,118120.0,1.12473458]
[1753718801525,0.35427202,118130.0,118120.0,1.12473458]
[1753718802030,0.31617202,118130.0,118120.0,1.12473458]
[1753718802524,0.37689032,118130.0,118120.0,1.12473458]
[1753718803125,0.65635032,118130.0,118120.0,1.12473458]
[1753718803321,0.68880032,118130.0,118120.0,1.12473458]
[1753718803830,0.68880032,118130.0,118120.0,0.95421191]
[1753718804529,1.12222299,118130.0,118120.0,1.65689191]
[1753718804730,1.06150469,118130.0,118120.0,1.65689191]
[1753718804930,0.62808202,118130.0,118120.0,1.65689191]
[1753718806338,0.70396162,118130.0,118120.0,2.08689078]
[1753718807027,0.68879933,118130.0,118120.0,2.08689078]
[1753718808436,0.62808202,118130.0,118120.0,2.08689078]
[1753718809135,0.68878686,118130.0,118120.0,2.08689078]
[1753718809737,0.68878686,118130.0,118120.0,1.82399078]
[1753718810237,0.62808202,118130.0,118120.0,1.82399078]
[1753718810537,0.68879154,118130.0,118120.0,1.82399078]
[1753718811234,0.68879632,118130.0,118120.0,1.82399078]
[1753718811841,0.21452632,118130.0,118120.0,1.82399078]
[1753718812031,0.09881352,118130.0,118120.0,2.25741345]
[1753718812346,0.0607262,118140.0,118130.0,0.5495939]
[1753718812639,0.0607262,118140.0,118130.0,0.98301657]
[1753718812840,0.07361635,118140.0,118130.0,0.98301657]
[1753718813237,0.04418095,118140.0,118130.0,0.98301657]
[1753718813438,0.22723615,118160.0,118150.0,0.3576852]
[1753718813745,0.5471696,118160.0,118150.0,1.68494787]
[1753718814035,0.56102127,118160.0,118150.0,1.68494787]
[1753718814541,0.56102127,118160.0,118150.0,1.2515252]
[1753718814735,0.56302127,118160.0,118150.0,1.2515252]
[1753718815438,0.71114727,118160.0,118150.0,1.2515252]
[1753718816244,0.71114727,118160.0,118150.0,1.68494787]
[1753718816447,0.47571727,118160.0,118150.0,1.26876207]
[1753718816741,0.23985727,118160.0,118150.0,1.70218474]
[1753718816936,0.20899767,118160.0,118150.0,1.70218474]
[1753718817136,0.20999767,118160.0,118150.0,1.70318474]
[1753718819336,0.37701767,118160.0,118150.0,1.70318474]
[1753718819537,0.63626767,118160.0,118150.0,1.26976207]
[1753718820740,0.56785767,118160.0,118150.0,1.70318474]
[1753718821145,0.16497767,118160.0,118150.0,1.70318474]
[1753718821439,1e-08,118160.0,118150.0,2.30587941]
[1753718821643,1e-08,118160.0,118150.0,2.55587941]
[1753718822245,0.47129,118190.0,118180.0,0.3576421]
[1753718822550,0.47129,118190.0,118180.0,1.68410477]
[1753718823440,0.04502,118190.0,118180.0,1.68410477]
[1753718823643,0.47129,118210.0,118200.0,0.5494935]
[1753718823844,0.5471696,118210.0,118200.0,1.13613403]
[1753718824641,0.47129,118210.0,118200.0,1.5695567]
[1753718824843,0.47129,118220.0,118210.0,0.3367692]
[1753718825033,0.53180585,118220.0,118210.0,0.77019187]
[1753718825444,0.47129,118220.0,118210.0,0.77019187]
[1753718825645,0.47129,118220.0,118210.0,0.3367692]
[1753718825849,0.47129,118220.0,118210.0,0.3464392]
[1753718826244,0.90471267,118220.0,118210.0,0.35652701]
[1753718826449,0.90671267,118220.0,118210.0,1.05836701]
[1753718826753,0.47329,118220.0,118210.0,1.49178968]
[1753718827044,0.196836,118220.0,118210.0,1.49158968]
[1753718827547,0.150126,118220.0,118210.0,1.49158968]
[1753718827746,0.150126,118220.0,118210.0,1.75448968]
[1753718827948,0.0001,118230.0,118220.0,0.1691749]
[1753718828241,0.0001,118230.0,118220.0,0.71631757]
[1753718828446,0.0001,118230.0,118220.0,0.88548557]
[1753718828844,0.46339585,118260.0,118250.0,0.267412]
[1753718829047,1.07383027,118260.0,118250.0,0.968332]
[1753718829247,0.96507801,118260.0,118250.0,0.968652]
[1753718830050,0.90471267,118260.0,118250.0,0.968452]
[1753718831344,0.90771267,118260.0,118250.0,0.970452]
[1753718831650,1.22495637,118260.0,118250.0,0.171132]
[1753718831845,1.22495637,118260.0,118250.0,0.002]
[1753718832048,0.359972,118250.0,118240.0,1.132685]
[1753718832252,1.07384467,118250.0,118240.0,1.1326863]
[1753718832946,1.14796825,118250.0,118240.0,1.1326863]
[1753718833353,1.16094324,118250.0,118240.0,0.8697863]
[1753718833855,1.16194324,118250.0,118240.0,0.8707863]
[1753718834952,2.28228725,118250.0,118240.0,0.003]
[1753718835151,0.3600863,118240.0,118230.0,0.1691559]